bitfinex/quotes_BTCUSD_20250709
["timestamp","ask_amount","ask_price","bid_price","bid_amount"]
[1752059782719,0.00951528,109160.0,109150.0,0.76380498]
[1752059783751,0.01051528,109160.0,109150.0,0.8741559]
[1752059784421,0.00951528,109160.0,109150.0,0.79193934]
[1752059784612,0.00951528,109160.0,109150.0,0.87414375]
[1752059784821,0.01051528,109160.0,109150.0,0.89123981]
[1752059785049,0.00951528,109160.0,109150.0,1.19464542]
[1752059788055,0.00951528,109160.0,109150.0,1.19462574]
[1752059788542,0.00951528,109160.0,109150.0,1.11240918]
[1752059790102,0.00951528,109160.0,109150.0,1.05761016]
[1752059790553,0.00951528,109160.0,109150.0,1.13960788]
[1752059791016,0.00951528,109160.0,109150.0,0.83620227]
[1752059794796,0.00951528,109160.0,109150.0,1.13960788]
[1752059795229,0.00951528,109160.0,109150.0,1.13959199]
[1752059796888,0.00951528,109160.0,109150.0,1.11612023]
[1752059797074,0.00951528,109160.0,109150.0,1.13957567]
[1752059802099,0.00951528,109160.0,109150.0,1.13957579]
[1752059802907,0.00951528,109160.0,109150.0,1.13957771]
[1752059805220,0.00951528,109160.0,109150.0,1.1395792]
[1752059808698,0.00951528,109160.0,109150.0,1.13959981]
[1752059812319,0.00951528,109160.0,109150.0,1.05760209]
[1752059815303,0.00951528,109160.0,109150.0,1.16757562]
[1752059816252,0.00951528,109160.0,109150.0,0.5607644]
[1752059816768,0.00951528,109160.0,109150.0,1.16757562]
[1752059817550,0.00951528,109160.0,109150.0,0.5607644]
[1752059817766,0.00951528,109160.0,109150.0,1.16757562]
[1752059819971,0.00951528,109160.0,109150.0,1.16762716]
[1752059823705,0.00951528,109160.0,109150.0,0.56081594]
[1752059823987,0.00951528,109160.0,109150.0,1.16762716]
[1752059824398,0.00951528,109160.0,109150.0,1.47103277]
[1752059824603,0.0002,109170.0,109160.0,0.0303]
[1752059824785,0.0002,109170.0,109160.0,1.41692268]
[1752059824992,0.0002,109170.0,109160.0,1.41463247]
[1752059825821,0.0002,109170.0,109160.0,1.42383668]
[1752059826213,0.0590333,109190.0,109160.0,1.42383668]
[1752059826414,0.05949924,109190.0,109180.0,0.64787957]
[1752059826620,0.05949924,109190.0,109180.0,0.94841069]
[1752059826997,0.02709924,109190.0,109180.0,0.94841069]
[1752059827641,0.04499924,109190.0,109180.0,0.94841069]
[1752059827843,0.02909924,109190.0,109180.0,1.00316849]
[1752059827993,0.02015358,109190.0,109180.0,1.00316849]
[1752059828187,0.02015358,109190.0,109180.0,0.69976288]
[1752059828453,0.02015358,109190.0,109180.0,0.64500508]
[1752059828779,0.02015358,109190.0,109180.0,1.00316849]
[1752059828981,0.02315358,109190.0,109180.0,1.42981103]
[1752059829189,0.02315358,109190.0,109180.0,1.38874268]
[1752059829388,0.02315358,109190.0,109180.0,1.47089027]
[1752059830039,0.02115358,109190.0,109180.0,1.47089027]
[1752059830242,0.01815358,109190.0,109180.0,1.47089027]
[1752059830675,0.01815358,109190.0,109180.0,1.47086237]
[1752059831074,0.01815358,109190.0,109180.0,1.47286237]
[1752059831875,0.02115358,109190.0,109180.0,1.47286237]
[1752059832294,0.01815358,109190.0,109180.0,1.46644479]
[1752059832465,0.01565858,109190.0,109180.0,1.47284826]
[1752059832823,0.01565858,109190.0,109180.0,1.47384826]
[1752059833252,0.01565858,109190.0,109180.0,1.41909046]
[1752059834533,0.00649216,109190.0,109180.0,1.41909046]
[1752059834677,0.00565234,109190.0,109180.0,1.44660546]
[1752059834906,0.10950276,109200.0,109190.0,0.0319]
[1752059835112,0.10958806,109200.0,109190.0,1.12851467]
[1752059835368,0.10958806,109200.0,109190.0,1.12622509]
[1752059836758,0.10958806,109200.0,109190.0,1.12619405]
[1752059839631,0.10958806,109200.0,109190.0,0.21044283]
[1752059839877,0.10958806,109200.0,109190.0,0.59772968]
[1752059840085,0.10958806,109200.0,109190.0,0.21044283]
[1752059840297,0.10958806,109200.0,109190.0,0.59772968]
[1752059840711,0.10958806,109200.0,109190.0,0.62962968]
[1752059840913,0.10958806,109200.0,109190.0,0.68422844]
[1752059841743,0.10958806,109200.0,109190.0,0.67782497]
[1752059841946,0.10958806,109200.0,109190.0,0.68421421]
[1752059842352,0.10958806,109200.0,109190.0,0.67782497]
[1752059842559,0.10958806,109200.0,109190.0,0.68419588]
[1752059842970,0.10958806,109200.0,109190.0,0.54571588]
[1752059843151,0.10958806,109200.0,109190.0,0.68431588]
[1752059844033,0.10958806,109200.0,109190.0,0.54571588]
[1752059844170,0.10958806,109200.0,109190.0,0.68431588]
[1752059844973,0.10958806,109200.0,109190.0,0.54571588]
[1752059845172,0.10958806,109200.0,109190.0,0.68431588]
[1752059845386,0.10958806,109200.0,109190.0,0.6843155]
[1752059846413,0.10958806,109200.0,109190.0,0.6813155]
[1752059847089,0.10958806,109200.0,109190.0,0.5427155]
[1752059847288,0.10958806,109200.0,109190.0,0.6813155]
[1752059848289,0.10958806,109200.0,109190.0,0.68131684]
[1752059848814,0.10958806,109200.0,109190.0,0.37791123]
[1752059849025,0.10958806,109200.0,109190.0,0.68131684]
[1752059849671,0.10958806,109200.0,109190.0,0.37791123]
[1752059849818,0.10958806,109200.0,109190.0,0.68131684]
[1752059850024,0.10958806,109200.0,109190.0,0.68126706]
[1752059852414,0.10958806,109200.0,109190.0,0.64036946]
[1752059854208,0.10958806,109200.0,109190.0,0.64038417]
[1752059855258,0.10958806,109200.0,109190.0,0.72253176]
[1752059858210,0.10958806,109200.0,109190.0,0.667933]
[1752059861472,0.10958806,109200.0,109190.0,0.529333]
[1752059861747,0.10958806,109200.0,109190.0,0.667853]
[1752059864082,0.10958806,109200.0,109190.0,0.36444739]
[1752059864309,0.10958806,109200.0,109190.0,0.667853]
[1752059864734,0.03972314,109200.0,109190.0,0.667853]
[1752059865499,0.03972314,109200.0,109190.0,0.66787118]
[1752059867341,0.03972314,109200.0,109190.0,0.36446557]
[1752059867546,0.03972314,109200.0,109190.0,0.66787118]
[1752059870194,0.03972314,109200.0,109190.0,0.58572359]
[1752059870657,0.03972314,109200.0,109190.0,0.92572359]
[1752059871004,0.03972314,109200.0,109190.0,0.58572359]
[1752059871424,0.03972314,109200.0,109190.0,0.69569712]
[1752059871632,0.03972314,109200.0,109190.0,0.72254322]
[1752059872602,0.03972314,109200.0,109190.0,0.41913761]
[1752059872820,0.03972314,109200.0,109190.0,0.72254322]
[1752059877537,0.03972314,109200.0,109190.0,0.70549386]
[1752059877739,0.03972314,109200.0,109190.0,0.72259455]
[1752059882669,0.03972314,109200.0,109190.0,0.41918894]
[1752059882859,0.03972314,109200.0,109190.0,0.72259455]
[1752059884542,0.03972314,109200.0,109190.0,0.66786465]
[1752059885223,0.03972314,109200.0,109190.0,0.36445904]
[1752059885488,0.03972314,109200.0,109190.0,0.97127026]
[1752059889729,0.03972314,109200.0,109190.0,0.6678615]
[1752059891254,0.03972314,109200.0,109190.0,0.66786118]
[1752059892600,0.03972314,109200.0,109190.0,0.66786037]
[1752059894204,0.03972314,109200.0,109190.0,0.65076388]
[1752059894415,0.03972314,109200.0,109190.0,0.66786036]
[1752059897131,0.03972314,109200.0,109190.0,0.66785996]
[1752059899891,0.03972314,109200.0,109190.0,0.36445435]
[1752059900158,0.03972314,109200.0,109190.0,0.66786032]
[1752059902998,0.03972314,109200.0,109190.0,0.66786062]
[1752059904281,0.03972314,109200.0,109190.0,0.36445501]
[1752059904498,0.03972314,109200.0,109190.0,0.66786062]
[1752059905852,0.03972314,109200.0,109190.0,0.66786162]
[1752059906464,0.03972314,109200.0,109190.0,0.58577189]
[1752059906978,0.03972314,109200.0,109190.0,0.28236628]
[1752059907314,0.03972314,109200.0,109190.0,0.58577189]
[1752059907669,0.03972314,109200.0,109190.0,0.28236628]
[1752059907883,0.03972314,109200.0,109190.0,0.66778179]
[1752059908127,0.03972314,109200.0,109190.0,0.66207189]
[1752059908793,0.03972314,109200.0,109190.0,0.66207213]
[1752059909566,0.03972314,109200.0,109190.0,0.35866652]
[1752059909781,0.03972314,109200.0,109190.0,0.66207213]
[1752059912339,0.03972314,109200.0,109190.0,0.66239213]
[1752059913213,0.03972314,109200.0,109190.0,0.77236566]
[1752059914055,0.03972314,109200.0,109190.0,0.66239213]
[1752059914277,0.03972314,109200.0,109190.0,0.77236566]
[1752059917106,0.03972314,109200.0,109190.0,0.77106566]
[1752059917548,0.03972314,109200.0,109190.0,0.74755607]
[1752059917754,0.03972314,109200.0,109190.0,0.77106608]
[1752059923505,0.03972314,109200.0,109190.0,0.77106658]
[1752059924251,0.0002,109210.0,109200.0,0.03527686]
[1752059924468,0.0161,109210.0,109200.0,0.72178695]
[1752059925321,0.0171,109210.0,109200.0,0.72178695]
[1752059925539,0.0181,109210.0,109200.0,0.72178695]
[1752059926554,0.0022,109210.0,109200.0,0.72178695]
[1752059929341,0.0022,109210.0,109200.0,0.72178718]
[1752059930269,0.0022,109210.0,109200.0,0.41838157]
[1752059930487,0.0022,109210.0,109200.0,0.72178718]
[1752059932217,0.0022,109210.0,109200.0,0.41838157]
[1752059932424,0.0022,109210.0,109200.0,0.72178718]
[1752059936875,0.0022,109210.0,109200.0,0.41838157]
[1752059937074,0.0022,109210.0,109200.0,0.72178718]
[1752059937827,0.0022,109210.0,109200.0,0.73688718]
[1752059940787,0.0022,109210.0,109200.0,0.7304769]
[1752059941020,0.0022,109210.0,109200.0,0.73688957]
[1752059942651,0.0022,109210.0,109200.0,0.43348396]
[1752059942809,0.0022,109210.0,109200.0,0.73688957]
[1752059943219,0.0022,109210.0,109200.0,0.73689074]
[1752059944462,0.0022,109210.0,109200.0,0.75259074]
[1752059948552,0.00135071,109210.0,109200.0,0.75259074]
[1752059949190,0.00135071,109210.0,109200.0,0.73689151]
[1752059952161,0.00135071,109210.0,109200.0,0.73689153]
[1752059952774,0.00135071,109210.0,109200.0,0.73689243]
[1752059953267,0.00135071,109210.0,109200.0,0.41838682]
[1752059953719,0.00135071,109210.0,109200.0,0.72179243]
[1752059956480,0.00135071,109210.0,109200.0,0.41838682]
[1752059956628,0.00135071,109210.0,109200.0,0.72179243]
[1752059957202,0.00135071,109210.0,109200.0,0.41838682]
[1752059957404,0.00135071,109210.0,109200.0,0.72179243]
[1752059958209,0.00135071,109210.0,109200.0,0.72179241]
[1752059958563,0.00135071,109210.0,109200.0,0.4183868]
[1752059958987,0.00135071,109210.0,109200.0,0.72179241]
[1752059959486,0.00135071,109210.0,109200.0,0.73829241]
[1752059961085,0.00135071,109210.0,109200.0,0.73829192]
[1752059962025,0.00135071,109210.0,109200.0,0.75469192]
[1752059964126,0.00135071,109210.0,109200.0,0.754692]
[1752059966838,0.00135071,109210.0,109200.0,0.75469256]
[1752059968360,0.00135071,109210.0,109200.0,0.45128695]
[1752059968560,0.00135071,109210.0,109200.0,0.75469256]
[1752059969514,0.00135071,109210.0,109200.0,0.45128695]
[1752059969716,0.00135071,109210.0,109200.0,0.75469256]
[1752059969947,0.00135071,109210.0,109200.0,0.75469258]
[1752059972881,0.00135071,109210.0,109200.0,0.45128669]
[1752059973082,0.00135071,109210.0,109200.0,0.7546923]
[1752059975579,0.00135071,109210.0,109200.0,0.74827889]
[1752059975784,0.00135071,109210.0,109200.0,0.75469231]
[1752059977258,0.00135071,109210.0,109200.0,0.4512867]
[1752059977434,0.00135071,109210.0,109200.0,0.75469231]
[1752059977666,0.00135071,109210.0,109200.0,0.4512867]
[1752059977859,0.00135071,109210.0,109200.0,0.75469231]
[1752059978064,0.00135071,109210.0,109200.0,0.4512867]
[1752059978274,0.00135071,109210.0,109200.0,0.75469259]
[1752059978832,0.30475632,109210.0,109200.0,0.14086698]
[1752059978965,0.32115632,109210.0,109200.0,0.13445356]
[1752059979178,0.41418651,109210.0,109200.0,0.14086735]
[1752059979359,0.7822341,109210.0,109200.0,0.19559873]
[1752059979975,0.7822341,109210.0,109200.0,0.1545802]
[1752059981232,0.7822341,109210.0,109200.0,0.09984882]
[1752059981440,0.78202785,109210.0,109200.0,0.09984882]
[1752059984561,0.87346478,109210.0,109200.0,0.09984882]
[1752059986669,0.90155532,109210.0,109200.0,0.09984882]
[1752059987396,1.20496093,109210.0,109200.0,0.09984882]
[1752059987802,0.90155532,109210.0,109200.0,0.09984882]
[1752059988212,1.04007532,109210.0,109200.0,0.09984882]
[1752059990131,1.04007532,109210.0,109200.0,0.05879338]
[1752059990977,1.04007532,109210.0,109200.0,0.05237959]
[1752059991194,1.04007532,109210.0,109200.0,0.05878614]
[1752059994384,1.34348093,109210.0,109200.0,0.05878614]
[1752059994582,0.73666971,109210.0,109200.0,0.05878614]
[1752059994789,1.37100593,109210.0,109200.0,0.05878614]
[1752060000598,1.37096593,109210.0,109200.0,0.05878614]
[1752060001767,1.37096593,109210.0,109200.0,0.04168341]
[1752060006961,1.279529,109210.0,109200.0,0.04168341]
[1752060008761,1.141049,109210.0,109200.0,0.04168341]
[1752060008964,1.279569,109210.0,109200.0,0.04168341]
[1752060009373,1.141049,109210.0,109200.0,0.04168341]
[1752060009562,1.264469,109210.0,109200.0,0.04168341]
[1752060009776,1.37190593,109210.0,109200.0,0.04168341]
[1752060010177,1.23338593,109210.0,109200.0,0.04168341]
[1752060010452,1.35590593,109210.0,109200.0,0.04168341]
[1752060010596,1.33950593,109210.0,109200.0,0.04168341]
[1752060010795,0.80614339,109210.0,109200.0,0.04168341]
[1752060011001,0.94466339,109210.0,109200.0,0.07258341]
[1752060011725,0.50273778,109210.0,109200.0,0.07258341]
[1752060011895,0.94466339,109210.0,109200.0,0.07258341]
[1752060012105,0.91713839,109210.0,109200.0,0.07258341]
[1752060012297,0.88904785,109210.0,109200.0,0.07258341]
[1752060012864,0.75052785,109210.0,109200.0,0.07258341]
[1752060012999,0.88904785,109210.0,109200.0,0.07258341]
[1752060015455,0.58564224,109210.0,109200.0,0.07258341]
[1752060015665,0.88904785,109210.0,109200.0,0.07258341]
[1752060015866,0.88904785,109210.0,109200.0,0.07258343]
[1752060016074,0.88908785,109210.0,109200.0,0.07258343]
[1752060017052,0.90502846,109210.0,109200.0,0.07258343]
[1752060017264,0.88908785,109210.0,109200.0,0.07258343]
[1752060019729,0.91661185,109210.0,109200.0,0.07258343]
[1752060019972,0.77805185,109210.0,109200.0,0.07258343]
[1752060020176,0.91657185,109210.0,109200.0,0.07258343]
[1752060023566,0.91653185,109210.0,109200.0,0.07258343]
[1752060024565,0.70456317,109210.0,109200.0,0.07258343]
[1752060024788,1.31137439,109210.0,109200.0,0.07258343]
[1752060024997,1.00796878,109210.0,109200.0,0.07258343]
[1752060025644,1.0359417,109210.0,109200.0,0.07258343]
[1752060025867,0.80602477,109210.0,109200.0,0.07258343]
[1752060026076,0.94534477,109210.0,109200.0,0.07258343]
[1752060029086,1.58465599,109210.0,109200.0,0.04168343]
[1752060029752,1.28125038,109210.0,109200.0,0.03527686]
[1752060029956,1.32241808,109210.0,109200.0,0.03527686]
[1752060030126,1.41385501,109210.0,109200.0,0.03527686]
[1752060030332,1.71726062,109210.0,109200.0,0.02610931]
[1752060030532,1.41385501,109210.0,109200.0,0.02610931]
[1752060030735,1.76726062,109210.0,109200.0,0.01694176]
[1752060030905,1.81726062,109210.0,109200.0,0.01694176]
[1752060031093,1.81726062,109210.0,109200.0,0.00777421]
[1752060031491,0.35454085,109200.0,109170.0,0.0303]
[1752060031719,0.62135207,109180.0,109170.0,0.03717886]
[1752060032056,0.54870339,109180.0,109170.0,0.03717886]
[1752060033058,0.40938339,109180.0,109170.0,0.03717886]
[1752060033304,0.54874339,109180.0,109170.0,0.03717886]
[1752060033779,0.54874339,109180.0,109170.0,0.03917886]
[1752060035642,0.55810311,109180.0,109170.0,0.03917886]
[1752060036257,0.55810311,109180.0,109170.0,0.04217886]
[1752060036461,0.54870339,109180.0,109170.0,0.04217886]
[1752060036673,0.027531,109190.0,109180.0,0.0304]
[1752060036887,0.57075693,109190.0,109180.0,0.03681292]
[1752060037065,0.57075693,109190.0,109180.0,0.34021853]
[1752060037066,0.65817318,109190.0,109180.0,0.34021853]
[1752060037299,0.65817318,109190.0,109180.0,0.03681292]
[1752060037920,0.96157879,109190.0,109180.0,0.03681292]
[1752060038542,0.65817318,109190.0,109180.0,0.34021853]
[1752060038953,0.65817318,109190.0,109180.0,0.03681292]
[1752060039774,0.65817318,109190.0,109180.0,0.03781292]
[1752060040189,0.51885318,109190.0,109180.0,0.03781292]
[1752060040391,0.65877318,109190.0,109180.0,0.03781292]
[1752060042330,0.97563036,109190.0,109180.0,0.03781292]
[1752060043570,0.67331403,109190.0,109180.0,0.03781292]
[1752060043766,0.65877318,109190.0,109180.0,0.03781292]
[1752060044325,0.67331403,109190.0,109180.0,0.03781292]
[1752060047277,0.65877318,109190.0,109180.0,0.03781292]
[1752060047679,0.67331403,109190.0,109180.0,0.03781292]
[1752060048085,0.67331403,109190.0,109180.0,0.03731292]
[1752060049140,0.70084303,109190.0,109180.0,0.03731292]
[1752060049341,0.67331403,109190.0,109180.0,0.03731292]
[1752060049555,0.58589778,109190.0,109180.0,0.03731292]
[1752060050319,0.61342678,109190.0,109180.0,0.03731292]
[1752060053732,0.91574311,109190.0,109180.0,0.03731292]
[1752060057290,0.91574311,109190.0,109180.0,0.03731292]
[1752060060890,0.91579866,109190.0,109180.0,0.03731292]
[1752060061704,0.88826966,109190.0,109180.0,0.0309]
[1752060061892,0.97970659,109190.0,109180.0,0.03731528]
[1752060062033,1.00723559,109190.0,109180.0,0.03731528]
[1752060062238,0.97970659,109190.0,109180.0,0.03731528]
[1752060064251,0.88826966,109190.0,109180.0,0.03731528]
[1752060064664,0.88826966,109190.0,109180.0,0.03731635]
[1752060066921,1.19064154,109190.0,109180.0,0.00741635]
[1752060067137,0.88826966,109190.0,109180.0,0.00741635]
[1752060067322,0.91579966,109190.0,109180.0,0.00741635]
[1752060067589,1.00723659,109190.0,109180.0,0.001]
[1752060067811,1.00723659,109190.0,109180.0,0.00741809]
[1752060070414,1.00723659,109190.0,109180.0,0.02301809]
[1752060072998,0.86731659,109190.0,109180.0,0.02301809]
[1752060073229,1.00675659,109190.0,109180.0,0.02301809]
[1752060073475,1.00675659,109190.0,109180.0,0.03802049]
[1752060074937,0.70438471,109190.0,109180.0,0.03802049]
[1752060075159,0.77587966,109190.0,109180.0,0.03802049]
[1752060075372,0.91531966,109190.0,109180.0,0.03802049]
[1752060084365,0.58533778,109190.0,109180.0,0.03802049]
[1752060085060,0.88770966,109190.0,109180.0,0.03802049]
[1752060085875,0.58533778,109190.0,109180.0,0.03802049]
[1752060086975,0.44597778,109190.0,109180.0,0.03802049]
[1752060087217,0.66288565,109190.0,109180.0,0.03802049]
[1752060087976,0.66288565,109190.0,109180.0,0.03802106]
[1752060089380,0.58529778,109190.0,109180.0,0.03802106]
[1752060092213,0.44597778,109190.0,109180.0,0.03802106]
[1752060092419,0.58521778,109190.0,109180.0,0.03802106]
[1752060093078,0.57071693,109190.0,109180.0,0.34039294]
[1752060095034,0.57071693,109190.0,109180.0,0.03802106]
[1752060095233,0.58330405,109190.0,109180.0,0.03802106]
[1752060095638,0.57071693,109190.0,109180.0,0.03802106]
[1752060096871,0.57071693,109190.0,109180.0,0.03802022]
[1752060097635,0.34,109190.0,109180.0,0.3403921]
[1752060097844,0.47924,109190.0,109180.0,0.3403921]
[1752060099969,0.47924,109190.0,109180.0,0.03802022]
[1752060102420,0.47924,109190.0,109180.0,0.03639566]
[1752060102641,0.47924,109190.0,109180.0,0.03639552]
[1752060105547,0.47924,109190.0,109180.0,0.02997544]
[1752060105700,0.47924,109190.0,109180.0,0.03639572]
[1752060105905,0.506766,109190.0,109180.0,0.03639572]
[1752060106899,0.506766,109190.0,109180.0,0.03639579]
[1752060108731,0.506766,109190.0,109180.0,0.0363956]
[1752060110177,0.506766,109190.0,109180.0,0.03478508]
[1752060111988,0.50648541,109190.0,109180.0,0.03478508]
[1752060114393,0.80885729,109190.0,109180.0,0.03478508]
[1752060115259,0.50648541,109190.0,109180.0,0.03478508]
[1752060115847,0.58737114,109190.0,109180.0,0.03478508]
[1752060117928,0.58737114,109190.0,109180.0,0.02836492]
[1752060118129,0.58737114,109190.0,109180.0,0.03478501]
[1752060118562,0.58737114,109190.0,109180.0,0.03478505]
[1752060119817,0.50648541,109190.0,109180.0,0.03478505]
[1752060124340,0.50648541,109190.0,109180.0,0.03478511]
[1752060126132,0.80885729,109190.0,109180.0,0.03478511]
[1752060128652,0.80885729,109190.0,109180.0,0.03478414]
[1752060129301,0.50648541,109190.0,109180.0,0.03478414]
[1752060130134,0.50648541,109190.0,109180.0,0.03478417]
[1752060133358,0.80885729,109190.0,109180.0,0.03478417]
[1752060133569,0.80885729,109190.0,109180.0,0.03478438]
[1752060134493,0.50648541,109190.0,109180.0,0.03478438]
[1752060137543,0.50648541,109190.0,109180.0,0.03478485]
[1752060137668,0.36724541,109190.0,109180.0,0.03478485]
[1752060137874,0.49342085,109200.0,109190.0,0.031]
[1752060138089,0.49342085,109200.0,109190.0,0.33979181]
[1752060138090,0.57676293,109200.0,109190.0,0.33979181]
[1752060138288,0.60428693,109200.0,109190.0,0.03741993]
[1752060138487,0.60428693,109200.0,109190.0,0.33979181]
[1752060139133,0.60528693,109200.0,109190.0,0.33979181]
[1752060140438,0.60628693,109200.0,109190.0,0.33979181]
[1752060140845,0.52294485,109200.0,109190.0,0.33979181]
[1752060141257,0.52298485,109200.0,109190.0,0.33979181]
[1752060143603,0.49546085,109200.0,109190.0,0.33979181]
[1752060145609,0.49538085,109200.0,109190.0,0.33979181]
[1752060146416,0.49438085,109200.0,109190.0,0.33979181]
[1752060146856,0.49538085,109200.0,109190.0,0.33979181]
[1752060147803,0.48084,109200.0,109190.0,0.33979181]
[1752060148865,0.47984,109200.0,109190.0,0.33979181]
[1752060149503,0.47984,109200.0,109190.0,0.47859181]
[1752060150359,0.53335899,109200.0,109190.0,0.47859181]
[1752060151172,0.53335899,109200.0,109190.0,0.17621993]
[1752060151374,0.83573087,109200.0,109190.0,0.17621993]
[1752060152382,0.83473087,109200.0,109190.0,0.17621993]
[1752060152599,0.83573087,109200.0,109190.0,0.17621993]
[1752060152813,0.53335899,109200.0,109190.0,0.17621993]
[1752060152998,0.78221188,109200.0,109190.0,0.17621993]
[1752060153232,0.78121188,109200.0,109190.0,0.17621993]
[1752060153629,0.47884,109200.0,109190.0,0.17621993]
[1752060155145,0.47884,109200.0,109190.0,0.17620712]
[1752060155953,0.55971349,109200.0,109190.0,0.17620712]
[1752060161883,0.47884,109200.0,109190.0,0.17620712]
[1752060166313,0.78121188,109200.0,109190.0,0.21723036]
[1752060166739,0.47884,109200.0,109190.0,0.21723036]
[1752060167567,0.66199018,109200.0,109190.0,0.21723036]
[1752060167987,0.96436206,109200.0,109190.0,0.07843036]
[1752060168408,0.96436206,109200.0,109190.0,0.03740712]
[1752060169042,0.96436206,109200.0,109190.0,0.07843036]
[1752060169276,1.05579899,109200.0,109190.0,0.07843036]
[1752060169455,1.05579899,109200.0,109190.0,0.03740712]
[1752060169868,0.87264881,109200.0,109190.0,0.03740712]
[1752060170285,0.57027693,109200.0,109190.0,0.03740712]
[1752060171229,0.57943427,109200.0,109190.0,0.03740712]
[1752060171438,0.58859135,109200.0,109190.0,0.03740712]
[1752060171648,0.59774885,109200.0,109190.0,0.07843036]
[1752060172289,0.78089903,109200.0,109190.0,0.07843036]
[1752060172701,1.08327091,109200.0,109190.0,0.07843036]
[1752060176009,1.08327091,109200.0,109190.0,0.07843996]
[1752060177114,0.90012073,109200.0,109190.0,0.07843996]
[1752060177537,1.08327091,109200.0,109190.0,0.07843996]
[1752060180727,0.75212323,109200.0,109190.0,0.07843996]
[1752060180937,0.93527341,109200.0,109190.0,0.07843996]
[1752060182764,1.07407341,109200.0,109190.0,0.07843996]
[1752060184239,0.77170153,109200.0,109190.0,0.07843996]
[1752060184473,1.07407341,109200.0,109190.0,0.07843996]
[1752060187502,1.06491633,109200.0,109190.0,0.07843996]
[1752060188695,0.76254445,109200.0,109190.0,0.07843996]
[1752060188899,1.06491633,109200.0,109190.0,0.07843996]
[1752060189508,1.06491633,109200.0,109190.0,0.07844046]
[1752060191069,0.76254445,109200.0,109190.0,0.07844046]
[1752060191287,0.9734794,109200.0,109190.0,0.07844046]
[1752060191914,0.67110752,109200.0,109190.0,0.07844046]
[1752060192147,0.98802025,109200.0,109190.0,0.07844046]
[1752060192791,0.54684837,109200.0,109190.0,0.07844046]
[1752060193848,0.6382853,109200.0,109190.0,0.07844071]
[1752060194155,0.94065718,109200.0,109190.0,0.07844071]
[1752060194618,0.94065718,109200.0,109190.0,0.07844081]
[1752060194825,1.07941718,109200.0,109190.0,0.07844081]
[1752060195075,0.98798025,109200.0,109190.0,0.07844081]
[1752060195287,0.98798025,109200.0,109190.0,0.07848982]
[1752060198322,0.68560837,109200.0,109190.0,0.07848982]
[1752060198503,0.98798025,109200.0,109190.0,0.07848982]
[1752060198906,1.07941718,109200.0,109190.0,0.07848982]
[1752060199651,0.7770453,109200.0,109190.0,0.07848982]
[1752060199868,0.98798025,109200.0,109190.0,0.07848982]
[1752060201483,0.98798025,109200.0,109190.0,0.07849029]
[1752060202443,0.68560837,109200.0,109190.0,0.07849029]
[1752060202658,0.98798025,109200.0,109190.0,0.07849029]
[1752060204388,0.84922025,109200.0,109190.0,0.07849029]
[1752060204610,0.70392295,109200.0,109190.0,0.07849029]
[1752060206312,0.73309291,109200.0,109190.0,0.07849029]
[1752060206521,0.70392295,109200.0,109190.0,0.07849029]
[1752060207243,0.70392295,109200.0,109190.0,0.07207225]
[1752060207456,0.70392295,109200.0,109190.0,0.0784902]
[1752060207663,0.69476587,109200.0,109190.0,0.0784902]
[1752060208793,0.99713775,109200.0,109190.0,0.0784902]
[1752060209743,1.03032846,109200.0,109190.0,0.0784902]
[1752060210373,0.99713775,109200.0,109190.0,0.0784902]
[1752060212000,0.37285518,109200.0,109190.0,0.0784902]
[1752060212211,0.71307969,109200.0,109190.0,0.0784902]
[1752060212418,0.52992951,109200.0,109190.0,0.38086208]
[1752060212857,0.52992943,109200.0,109190.0,0.38086208]
[1752060213048,0.52992943,109200.0,109190.0,0.0784902]
[1752060213314,0.52992943,109200.0,109190.0,0.38086208]
[1752060214606,0.71307961,109200.0,109190.0,0.38086208]
[1752060215247,1.00629466,109200.0,109190.0,0.03741795]
[1752060216017,1.06290182,109200.0,109190.0,0.03741795]
[1752060216636,1.06290182,109200.0,109190.0,0.0784902]
[1752060216855,1.00629466,109200.0,109190.0,0.0784902]
[1752060217028,0.99713758,109200.0,109190.0,0.0784902]
[1752060217229,0.99713758,109200.0,109190.0,0.2172502]
[1752060217498,0.9728696,109200.0,109190.0,0.2172502]
[1752060219479,0.96371235,109200.0,109190.0,0.0784902]
[1752060219685,0.96371235,109200.0,109190.0,0.2172502]
[1752060220537,0.96371235,109200.0,109190.0,0.16976]
[1752060221127,0.96371235,109200.0,109190.0,0.21083225]
[1752060221942,0.98832566,109200.0,109190.0,0.21083225]
[1752060222356,0.96371235,109200.0,109190.0,0.21083225]
[1752060222890,0.96371235,109200.0,109190.0,0.16976]
[1752060226555,0.66134047,109200.0,109190.0,0.16976]
[1752060226872,0.96371235,109200.0,109190.0,0.16976]
[1752060227887,0.66134047,109200.0,109190.0,0.16976]
[1752060229783,0.66134047,109200.0,109190.0,0.17617796]
[1752060230364,0.96371235,109200.0,109190.0,0.21725021]
[1752060230531,0.96371235,109200.0,109190.0,0.21724961]
[1752060230734,0.66130047,109200.0,109190.0,0.51962149]
[1752060231570,0.66130047,109200.0,109190.0,0.21724961]
[1752060231571,0.67045764,109200.0,109190.0,0.21724961]
[1752060231776,0.67045764,109200.0,109190.0,0.51962149]
[1752060232712,0.53173764,109200.0,109190.0,0.51962149]
[1752060233538,0.83410952,109200.0,109190.0,0.21724961]
[1752060234674,0.97282952,109200.0,109190.0,0.21724961]
[1752060236266,0.67045764,109200.0,109190.0,0.21724961]
[1752060236480,0.34858696,109200.0,109190.0,0.51962149]
[1752060236680,0.34915616,109210.0,109200.0,0.0322]
[1752060236884,0.51534473,109210.0,109200.0,0.34098924]
[1752060237036,0.02746832,109210.0,109200.0,0.03861736]
[1752060237440,0.03662473,109210.0,109200.0,0.03861736]
[1752060238033,0.03662473,109210.0,109200.0,0.07968268]
[1752060238234,0.04578123,109210.0,109200.0,0.07968268]
[1752060239597,0.02746832,109210.0,109200.0,0.07968268]
[1752060239798,0.03662465,109210.0,109200.0,0.07968268]
[1752060240511,0.04578115,109210.0,109200.0,0.07968268]
[1752060242843,0.22891456,109210.0,109200.0,0.07968268]
[1752060243062,0.21975865,109210.0,109200.0,0.07968268]
[1752060243189,0.03662524,109210.0,109200.0,0.03861736]
[1752060244119,0.03662524,109210.0,109200.0,0.03860878]
[1752060245270,0.03662524,109210.0,109200.0,0.0796741]
[1752060245479,0.03662524,109210.0,109200.0,0.03860878]
[1752060245880,0.03662524,109210.0,109200.0,0.0796741]
[1752060246088,0.01831241,109210.0,109200.0,0.03860878]
[1752060246298,0.02746891,109210.0,109200.0,0.03860878]
[1752060246505,0.02746891,109210.0,109200.0,0.0796741]
[1752060246691,0.02746891,109210.0,109200.0,0.03860878]
[1752060247096,0.03662558,109210.0,109200.0,0.03860878]
[1752060247395,0.21975899,109210.0,109200.0,0.03860878]
[1752060249335,0.21060232,109210.0,109200.0,0.03860878]
[1752060250336,0.21975899,109210.0,109200.0,0.03860878]
[1752060251181,0.21060283,109210.0,109200.0,0.03860878]
[1752060252009,0.51297471,109210.0,109200.0,0.03860878]
[1752060254091,0.51297471,109210.0,109200.0,0.03860637]
[1752060254551,0.3298413,109210.0,109200.0,0.03860637]
[1752060254696,0.51297471,109210.0,109200.0,0.03860637]